fUSD/lending_fUSD_20250619
["ID","MTS","AMOUNT","RATE_DAILY","PERIOD"]
[366499537,1750293038839,-500.0,0.00016438,2]
[366499539,1750293038849,-500.0,0.00016438,2]
[366499541,1750293038858,-500.0,0.00016438,2]
[366499543,1750293038869,-500.0,0.00016438,2]
[366499545,1750293038879,-500.0,0.00016438,2]
[366499547,1750293038888,-500.0,0.00016438,2]
[366499549,1750293038899,-500.0,0.00016438,2]
[366499551,1750293038908,-500.0,0.00016438,2]
[366499553,1750293038917,-500.0,0.00016438,2]
[366499555,1750293038927,-177.69208868,0.00016438,2]
[366499557,1750293038936,-500.0,0.00016438,2]
[366499559,1750293038946,-500.0,0.00016438,2]
[366499560,1750293038956,-500.0,0.00016438,2]
[366499561,1750293038965,-500.0,0.00016438,2]
[366499562,1750293038975,-500.0,0.00016438,2]
[366499563,1750293038985,-500.0,0.00016438,2]
[366499564,1750293038994,-500.0,0.00016438,2]
[366499565,1750293039004,-500.0,0.00016438,2]
[366499566,1750293039014,-500.0,0.00016438,2]
[366499567,1750293039024,-500.0,0.00016438,2]
[366499568,1750293039033,-500.0,0.00016438,2]
[366499569,1750293039043,-500.0,0.00016438,2]
[366499570,1750293039053,-500.0,0.00016438,2]
[366499571,1750293039063,-500.0,0.00016438,2]
[366499572,1750293039072,-500.0,0.00016438,2]
[366499573,1750293039082,-500.0,0.00016438,2]
[366499574,1750293039091,-500.0,0.00016438,2]
[366499575,1750293039100,-500.0,0.00016438,2]
[366499576,1750293039110,-454.93581228,0.00016438,2]
[366499577,1750293039119,-500.0,0.00016438,2]
[366499578,1750293039129,-500.0,0.00016438,2]
[366499579,1750293039138,-500.0,0.00016438,2]
[366499580,1750293039147,-500.0,0.00016438,2]
[366499581,1750293039157,-500.0,0.00016438,2]
[366499582,1750293039168,-500.0,0.00016438,2]
[366499583,1750293039178,-500.0,0.00016438,2]
[366499584,1750293039189,-500.0,0.00016438,2]
[366499585,1750293039199,-150.0,0.00016448,2]
[366499586,1750293039208,-153.92,0.0001649,2]
[366499587,1750293039222,-197650.57613123,0.000165,2]
[366499588,1750293039236,-5795.93,0.000165,2]
[366499589,1750293039252,-349.68393763,0.000166,2]
[366499590,1750293039264,-3000.0,0.000166,2]
[366499591,1750293039276,-3000.0,0.000166,2]
[366499592,1750293039289,-3000.0,0.000166,2]
[366499593,1750293039302,-3000.0,0.000166,2]
[366499594,1750293039315,-1721.49,0.000166,2]
[366499595,1750293039329,-1620.0,0.0001662,2]
[366499596,1750293039352,-500.0,0.00016645,2]
[366499597,1750293039365,-500.0,0.00016645,2]
[366499599,1750293039376,-500.0,0.00016645,2]
[366499601,1750293039389,-522.72514927,0.00016645,2]
[366499603,1750293039403,-160.10644752,0.00016645,2]
[366499605,1750293039417,-160.10125592,0.00016645,2]
[366499606,1750293039431,-500.0,0.00016645,2]
[366499607,1750293039444,-500.0,0.00016645,2]
[366499608,1750293039459,-500.0,0.00016645,2]
[366499609,1750293039475,-520.4382781,0.00016645,2]
[366499610,1750293039488,-500.0,0.00016645,2]
[366499613,1750293039503,-500.0,0.00016645,2]
[366499615,1750293039516,-499.50503273,0.00016645,2]
[366499617,1750293039529,-500.0,0.00016645,2]
[366499620,1750293039542,-500.0,0.00016645,2]
[366499622,1750293039555,-442.67860699,0.00016702,2]
[366499625,1750293039568,-1000.0,0.00016732,2]
[366499627,1750293039582,-580.84933415,0.00016732,2]
[366499630,1750293039596,-1501.86426653,0.00016732,2]
[366499632,1750293039608,-164.65405025,0.000169,2]
[366499634,1750293039621,-7256.3911947,0.00016909,2]
[366499637,1750293039633,-1865.48533775,0.00016969,2]
[366499639,1750293039645,-5000.0,0.00016978,2]
[366499641,1750293039656,-255.98626235,0.0001699,2]
[366499644,1750293039672,-10533.15783727,0.00016999,2]
[366499646,1750293039684,-119770.97,0.00017,2]
[366499648,1750293039696,-100602.82833821,0.00017,2]
[366499650,1750293039710,-284.98881387,0.00017008,2]
[366499653,1750293039722,-506.33715115,0.00017193,2]
[366499655,1750293039735,-1000.8318122,0.00017193,2]
[366499657,1750293039750,-1000.0,0.00017193,2]
[366499660,1750293039762,-151.02989897,0.00017193,2]
[366499662,1750293039776,-1000.0,0.00017193,2]
[366499664,1750293039788,-1000.0,0.00017193,2]
[366499666,1750293039800,-666.36014192,0.00017193,2]
[366499669,1750293039812,-503.38915492,0.00017193,2]
[366499671,1750293039825,-695.86066143,0.00017193,2]
[366499673,1750293039837,-433.0,0.00017338,2]
[366499675,1750293039848,-7256.3911947,0.00017412,2]
[366499678,1750293039867,-3236.84638086,0.00017655,2]
[366499681,1750293039878,-1865.48533775,0.00017659,2]
[366499683,1750293039890,-1001.44999098,0.00017741,2]
[366499685,1750293039902,-745.77664795,0.00017741,2]
[366499688,1750293039915,-1500.0,0.00017741,2]
[366499690,1750293039927,-3335.26437106,0.000178,3]
[366499692,1750293039939,-214.24443754,0.000179,2]
[366499694,1750293039951,-4500.49956614,0.000179,2]
[366499698,1750293039963,-155.21774205,0.000179,2]
[366499700,1750293039977,-417.06262962,0.000179,2]
[366499703,1750293039990,-17682.65145562,0.000179,2]
[366499705,1750293040003,-1834.57002158,0.000179,2]
[366499707,1750293040015,-244.26527274,0.000179,3]
[366499709,1750293040027,-7256.3911947,0.00017914,2]
[366499712,1750293040038,-153.92,0.0001799,2]
[366499714,1750293040051,-153.92,0.0001799,2]
[366499715,1750293040064,-666.0,0.00017999,2]
[366499717,1750293040076,-153.72,0.00018,2]
[366499718,1750293040087,-24180.88733171,0.00018,2]
[366499719,1750293040099,-36004.78569189,0.00018,2]
[366499720,1750293040111,-602008.39286559,0.00018,2]
[366499721,1750293040122,-1155.74372369,0.00018,2]
[366499722,1750293040134,-151.0,0.00018,2]
[366499723,1750293040146,-151.0,0.00018,2]
[366499724,1750293040158,-192.13282865,0.00018,2]
[366499726,1750293040171,-2351.0,0.00018028,2]
[366499728,1750293040183,-758.33995871,0.00018062,2]
[366499731,1750293040196,-1728.56945079,0.000181,2]
[366499733,1750293040208,-6999.51221417,0.00018143,2]
[366499735,1750293040220,-501.69695447,0.00018289,2]
[366499738,1750293040233,-1865.48533775,0.00018348,2]
[366499740,1750293040245,-7256.3911947,0.00018416,2]
[366499742,1750293040257,-5795.93,0.000185,2]
[366499744,1750293040268,-161.0,0.00018509,2]
[366499747,1750293040280,-340.0,0.00018628,2]
[366499749,1750293040292,-154.07206838,0.000189,2]
[366499751,1750293040304,-7256.3911947,0.00018919,2]
[366499753,1750293040315,-150.0,0.00018998,2]
[366499756,1750293040327,-150.0,0.00018998,2]
[366499758,1750293040339,-156.50807578,0.00018998,2]
[366499760,1750293040351,-64947.82559929,0.00018999,2]
[366499763,1750293040362,-2020.94362475,0.00019,2]
[366499765,1750293040374,-4024.31887249,0.00019,2]
[366499767,1750293040386,-992.00738543,0.00019012,2]
[366499770,1750293040399,-1865.48533775,0.00019038,2]
[366499772,1750293040411,-284.98881387,0.00019116,2]
[366499774,1750293040423,-153.92,0.0001939,2]
[366499776,1750293040434,-153.92,0.0001939,2]
[366499779,1750293040447,-920197.24908019,0.000194,2]
[366499781,1750293040459,-151.0,0.000194,2]
[366499783,1750293040471,-151.0,0.000194,2]
[366499785,1750293040483,-151.0,0.000194,2]
[366499788,1750293040495,-151.0,0.000194,2]
[366499790,1750293040506,-151.0,0.000194,2]
[366499792,1750293040517,-151.0,0.000194,2]
[366499794,1750293040529,-7256.3911947,0.00019421,2]
[366499797,1750293040541,-1865.48533775,0.00019728,2]
[366499799,1750293040553,-1200.0,0.00019831,2]
[366499801,1750293040565,-1484.92846185,0.00019837,2]
[366499804,1750293040577,-5022.61728291,0.00019845,2]
[366499806,1750293040589,-200.0,0.00019845,2]
[366499808,1750293040601,-52043.54873727,0.00019845,2]
[366499810,1750293040613,-806.36819066,0.00019846,2]
[366499813,1750293040624,-770.93597466,0.00019849,2]
[366499815,1750293040636,-1484.92846185,0.00019849,2]
[366499817,1750293040647,-770.93597466,0.00019862,2]
[366499819,1750293040659,-200.0,0.0001987,2]
[366499821,1750293040670,-200.0,0.00019871,2]
[366499824,1750293040682,-52043.54873727,0.00019877,2]
[366499826,1750293040693,-5022.61728291,0.0001989,2]
[366499828,1750293040709,-52043.54873727,0.00019894,2]
[366499831,1750293040721,-995.75863972,0.000199,2]
[366499834,1750293040732,-200.0,0.0001991,2]
[366499836,1750293040744,-5022.61728291,0.00019914,2]
[366499838,1750293040757,-200.0,0.00019923,2]
[366499840,1750293040768,-1111.47111393,0.00019934,2]
[366499842,1750293040780,-200.0,0.00019937,2]
[366499845,1750293040792,-200.0,0.00019945,2]
[366499847,1750293040803,-806.36819066,0.00019947,2]
[366499849,1750293040814,-1484.92846185,0.00019949,2]
[366499851,1750293040826,-770.93597466,0.0001995,2]
[366499854,1750293040838,-806.36819066,0.00019953,2]
[366499856,1750293040850,-6999.51221417,0.00019969,2]
[366499858,1750293040862,-1111.47111393,0.00019978,2]
[366499860,1750293040874,-9413.26466234,0.0001998,2]
[366499863,1750293040885,-1111.47111393,0.00019981,2]
[366499865,1750293040896,-153.92,0.0001999,2]
[366499867,1750293040908,-255.98626235,0.0001999,2]
[366499870,1750293040920,-250.0,0.00019996,2]
[366499872,1750293040931,-591236.83054866,0.0002,2]
[366499874,1750293040942,-292.70097673,0.0002,2]
[366499876,1750293040953,-197.29902327,0.0002,4]
[366499878,1750293040964,-292.70097673,0.0002,2]
[366499881,1750293040976,-197.29902327,0.0002,4]
[366499883,1750293040988,-151.0,0.0002,2]
[366499885,1750293041000,-292.70097673,0.0002,2]
[366499887,1750293041012,-197.29902327,0.0002,4]
[366499890,1750293041023,-4000.0,0.0002,4]
[366499892,1750293041035,-316.92,0.0002,2]
[366499894,1750293041047,-151.0,0.0002,2]
[366499897,1750293041059,-151.0,0.0002,2]
[366499899,1750293041071,-151.0,0.0002,2]
[366499901,1750293041082,-151.0,0.0002,2]
[366499903,1750293041093,-151.0,0.0002,2]
[366499906,1750293041105,-1865.48533775,0.00020417,3]
[366499908,1750293041116,-500.0,0.0002053,2]
[366499910,1750293041128,-500.0,0.0002053,2]
[366499912,1750293041139,-152.0,0.00020936,2]
[366499915,1750293041149,-1606.0,0.0002104,2]
[366499917,1750293041161,-1865.48533775,0.00021107,4]
[366499919,1750293041173,-284.98881387,0.00021224,2]
[366499921,1750293041185,-151.0,0.00021552,2]
[366499924,1750293041197,-6999.51221417,0.00021796,2]
[366499926,1750293041209,-1865.48533775,0.00021797,6]
[366499928,1750293041220,-154.65,0.00021918,2]
[366499930,1750293041232,-153.5,0.00021918,2]
[366499933,1750293041244,-6647.0,0.00022,7]
[366499935,1750293041256,-4000.0,0.00022,4]
[366499937,1750293041268,-5795.93,0.000221,2]
[366499939,1750293041281,-1865.48533775,0.00022486,7]
[366499942,1750293041292,-153.5,0.00022701,2]
[366499944,1750293041303,-498.81,0.00023,2]
[366499946,1750293041314,-1865.48533775,0.00023176,8]
[366499948,1750293041327,-711.18474535,0.000232,2]
[366499951,1750293041338,-284.98881387,0.00023332,2]
[366499952,1750293041350,-500.0,0.00023333,2]
[366499954,1750293041361,-153.5,0.00023483,2]
[366499956,1750293041373,-6999.51221417,0.00023623,2]
[366499958,1750293041386,-201.0,0.00023634,2]
[366499960,1750293041397,-1865.48533775,0.00023866,10]
[366499962,1750293041409,-626.23742973,0.000239,2]
[366499964,1750293041420,-11597.20039579,0.00024,5]
[366499966,1750293041432,-4000.0,0.00024,4]
[366499968,1750293041443,-153.5,0.00024266,2]
[366499970,1750293041455,-3793.05,0.000245,2]
[366499972,1750293041466,-1865.48533775,0.00024555,11]
[366499974,1750293041478,-201.0,0.00024566,3]
[366499975,1750293041489,-610982.582475,0.000248,2]
[366499977,1750293041501,-151.0,0.000248,7]
[366499979,1750293041513,-151.0,0.000248,7]
[366499981,1750293041524,-151.0,0.000248,7]
[366499983,1750293041535,-152.060433,0.000248,7]
[366499985,1750293041547,-151.0,0.000248,7]
[366499987,1750293041558,-704.52891537,0.0002497,2]
[366499989,1750293041570,-1000.0,0.0002497,9]
[366499991,1750293041581,-1000.0,0.0002497,9]
[366499993,1750293041593,-1000.0,0.0002497,9]
[366499995,1750293041604,-1000.0,0.0002497,9]
[366499997,1750293041615,-1000.0,0.0002497,9]
[366499999,1750293041626,-920.49046941,0.0002497,9]
[366500001,1750293041638,-1000.0,0.0002498,9]
[366500003,1750293041649,-1000.0,0.0002498,9]
[366500005,1750293041661,-1000.0,0.0002498,9]
[366500007,1750293041673,-1000.0,0.0002498,9]
[366500009,1750293041684,-1000.0,0.0002498,9]
[366500011,1750293041697,-1000.0,0.0002498,9]
[366500013,1750293041710,-112422.0,0.00025,14]
[366500015,1750293041721,-1881.99999959,0.00025,7]
[366500017,1750293041732,-153.5,0.00025049,2]
[366500019,1750293041744,-1865.48533775,0.00025245,12]
[366500020,1750293041755,-284.98881387,0.0002544,2]
[366500022,1750293041767,-6999.51221417,0.00025449,2]
[366500024,1750293041779,-201.0,0.00025499,4]
[366500026,1750293041790,-5795.93,0.000255,2]
[366500029,1750293041802,-153.5,0.00025832,2]
[366500031,1750293041813,-1865.48533775,0.00025934,14]
[366500033,1750293041824,-505.90213474,0.00025983,2]
[366500034,1750293041836,-452.4821536,0.00025983,2]
[366500036,1750293041847,-500.1520469,0.00025983,2]
[366500038,1750293041859,-212.76940668,0.00025983,2]
[366500041,1750293041870,-502.82104522,0.00025983,2]
[366500043,1750293041882,-500.0,0.00025983,2]
[366500045,1750293041893,-500.0,0.00025983,2]
[366500046,1750293041905,-500.0,0.00025983,2]
[366500049,1750293041917,-500.0,0.00025983,2]
[366500051,1750293041930,-163.22398192,0.00025983,2]
[366500053,1750293041941,-500.0,0.00025983,2]
[366500055,1750293041953,-500.09880269,0.00025983,2]
[366500057,1750293041965,-500.0,0.00025983,2]
[366500059,1750293041976,-500.0,0.00025983,2]
[366500061,1750293041988,-163.88014992,0.00025983,2]
[366500063,1750293041999,-4000.0,0.00026,4]
[366500066,1750293042011,-535.97923939,0.0002605,2]
[366500068,1750293042022,-500.0,0.0002605,2]
[366500070,1750293042034,-332.37694745,0.0002605,2]
[366500072,1750293042045,-500.0,0.0002605,2]
[366500074,1750293042058,-499.12934955,0.0002605,2]
[366500075,1750293042070,-500.0,0.00026136,2]
[366500077,1750293042082,-164.40141491,0.0002618,2]
[366500080,1750293042093,-500.0,0.0002618,2]
[366500082,1750293042105,-160.05180811,0.0002618,2]
[366500084,1750293042117,-500.0,0.0002618,2]
[366500086,1750293042128,-500.10041679,0.0002618,2]
[366500088,1750293042140,-500.232718,0.0002618,2]
[366500090,1750293042152,-500.0,0.0002618,2]
[366500092,1750293042163,-272.84982887,0.0002618,2]
[366500094,1750293042174,-321.59946982,0.0002618,2]
[366500096,1750293042186,-512.99019753,0.0002618,2]
[366500098,1750293042199,-400.15493929,0.0002618,2]
[366500100,1750293042210,-500.15235083,0.0002618,2]
[366500102,1750293042221,-500.0,0.0002618,2]
[366500104,1750293042232,-500.0,0.0002618,2]
[366500106,1750293042244,-4500.49956614,0.000263,2]
[366500108,1750293042256,-417.0626296,0.000263,2]
[366500110,1750293042268,-17682.65145562,0.000263,2]
[366500113,1750293042279,-1834.57002156,0.000263,2]
[366500115,1750293042291,-884.0,0.00026327,2]
[366500117,1750293042303,-3333.0,0.00026327,2]
[366500119,1750293042315,-4092.0,0.00026327,2]
[366500121,1750293042326,-7112.0,0.00026327,2]
[366500123,1750293042339,-201.0,0.00026431,6]
[366500125,1750293042350,-1000.0,0.00026531,2]
[366500127,1750293042361,-537.8204497,0.00026531,2]
[366500129,1750293042373,-1000.0,0.00026531,2]
[366500131,1750293042386,-1049.93512745,0.00026531,2]
[366500133,1750293042398,-1000.0,0.00026531,2]
[366500135,1750293042411,-1000.0,0.00026531,2]
[366500138,1750293042423,-1000.0,0.00026531,2]
[366500140,1750293042435,-500.0,0.00026598,2]
[366500142,1750293042446,-153.5,0.00026614,2]
[366500144,1750293042456,-1865.48533775,0.00026624,15]
[366500146,1750293042466,-778.87035695,0.00026728,2]
[366500148,1750293042476,-1000.0,0.00026728,2]
[366500150,1750293042486,-500.50607704,0.00026728,2]
[366500152,1750293042496,-1000.0,0.00026728,2]
[366500154,1750293042506,-1000.0,0.00026728,2]
[366500156,1750293042516,-168.0,0.00027,7]
[366500158,1750293042526,-158.19381996,0.00027,2]
[366500160,1750293042536,-500.0,0.00027079,2]
[366500162,1750293042545,-500.0,0.00027079,2]
[366500164,1750293042555,-500.0,0.00027079,2]
[366500166,1750293042566,-500.0,0.00027079,2]
[366500168,1750293042576,-500.0,0.00027079,2]
[366500170,1750293042586,-119770.97,0.000271,7]
[366500172,1750293042595,-500.0,0.00027167,2]
[366500174,1750293042605,-500.0,0.00027167,2]
[366500176,1750293042615,-500.0,0.00027167,2]
[366500231,1750293043217,-521.73507938,0.00027276,2]
[366500232,1750293043248,-500.0,0.00027276,2]
[366500233,1750293043270,-6999.51221417,0.00027276,2]
[366500236,1750293043298,-1865.48533775,0.00027314,16]
[366500237,1750293043309,-201.0,0.00027364,7]
[366500238,1750293043319,-153.5,0.00027397,2]
[366500239,1750293043328,-284.98881387,0.00027548,2]
[366500240,1750293043338,-163.15375829,0.00027715,5]
[366500241,1750293043348,-500.34831717,0.00027715,5]
[366500242,1750293043357,-1000.0,0.00027715,5]
[366500243,1750293043367,-257.92834964,0.00028,60]
[366500244,1750293043377,-5795.93,0.00028,2]
[366500245,1750293043387,-4000.0,0.00028,4]
[366500246,1750293043397,-1865.48533775,0.00028003,18]
[366500247,1750293043407,-153.5,0.0002818,2]
[366500248,1750293043418,-501.50722289,0.00028263,5]
[366500249,1750293043428,-201.0,0.00028296,9]
[366500250,1750293043438,-1865.48533775,0.00028693,19]
[366500251,1750293043448,-3400.0,0.000289,10]
[366500252,1750293043457,-153.5,0.00028963,2]
[366500253,1750293043467,-278.0,0.00028998,7]
[366500254,1750293043476,-151.0,0.00029087,2]
[366500255,1750293043486,-151.0,0.00029087,2]
[366500256,1750293043496,-1957.856,0.00029087,2]
[366500257,1750293043506,-151.0,0.00029087,2]
[366500258,1750293043515,-500.0,0.00029087,2]
[366500259,1750293043525,-500.0,0.00029087,2]
[366500260,1750293043535,-500.0,0.00029087,2]
[366500261,1750293043544,-500.0,0.00029087,2]
[366500262,1750293043554,-500.0,0.00029087,2]
[366500264,1750293043563,-500.0,0.00029087,2]
[366500266,1750293043573,-500.0,0.00029087,2]
[366500268,1750293043582,-500.0,0.00029087,2]
[366500270,1750293043592,-500.0,0.00029087,2]
[366500272,1750293043602,-500.0,0.00029087,2]
[366500274,1750293043612,-500.0,0.00029087,2]
[366500276,1750293043622,-500.0,0.00029087,2]
[366500278,1750293043632,-500.0,0.00029087,2]
[366500279,1750293043641,-300.0,0.00029087,2]
[366500280,1750293043651,-500.0,0.00029087,2]
[366500281,1750293043660,-300.0,0.00029087,2]
[366500282,1750293043670,-300.0,0.00029087,2]
[366500283,1750293043680,-500.0,0.00029087,2]
[366500284,1750293043692,-300.0,0.00029087,2]
[366500285,1750293043706,-300.0,0.00029087,2]
[366500286,1750293043716,-300.0,0.00029087,2]
[366500287,1750293043726,-207.4,0.00029087,2]
[366500288,1750293043735,-300.0,0.00029087,2]
[366500289,1750293043746,-171.08900477,0.00029087,2]
[366500290,1750293043756,-6999.51221417,0.00029103,2]
[366500291,1750293043766,-9999.99,0.00029104,2]
[366500292,1750293043778,-9999.99,0.00029104,2]
[366500293,1750293043789,-9999.99,0.00029104,2]
[366500294,1750293043798,-150.99,0.00029104,2]
[366500295,1750293043809,-882.85,0.00029104,2]
[366500296,1750293043818,-2030.296672,0.00029142,2]
[366500297,1750293043829,-395.30199905,0.00029197,2]
[366500298,1750293043838,-201.0,0.00029229,10]
[366500299,1750293043849,-3332.0,0.00029327,2]
[366500300,1750293043859,-4089.0,0.00029327,2]
[366500301,1750293043869,-1865.48533775,0.00029383,20]
[366500302,1750293043879,-119770.97,0.000294,7]
[366500303,1750293043889,-151.0,0.000294,7]
[366500304,1750293043899,-151.0,0.000294,7]
[366500305,1750293043910,-151.0,0.000294,7]
[366500306,1750293043920,-173.14465447,0.00029564,7]
[366500307,1750293043931,-284.98881387,0.00029656,15]
[366500308,1750293043940,-153.5,0.00029745,2]
[366500309,1750293043950,-1000.0,0.00029757,2]
[366500310,1750293043960,-625.59839425,0.0002997,2]
[366500311,1750293043970,-400.0,0.0002997,2]
[366500312,1750293043980,-489.999999,0.0003,2]
[366500313,1750293043991,-1003.35870784,0.0003,2]
[366500314,1750293044001,-548.82887964,0.0003,4]
[366500315,1750293044011,-2110.00453543,0.0003,120]
[366500316,1750293044020,-4000.0,0.0003,4]
[366500317,1750293044031,-1865.48533775,0.00030072,22]
[366500318,1750293044040,-548.62,0.00030118,2]
[366500319,1750293044050,-1957.27,0.00030123,2]
[366500320,1750293044060,-154.65,0.00030137,2]
[366500321,1750293044070,-300.0,0.00030137,80]
[366500322,1750293044080,-201.0,0.00030161,12]
[366500323,1750293044090,-2758.53,0.000302,2]
[366500324,1750293044100,-278.0,0.00030264,2]
[366500325,1750293044109,-500.0,0.00030299,2]
[366500326,1750293044120,-150.46935769,0.00030299,2]
[366500327,1750293044130,-500.0,0.00030299,2]
[366500328,1750293044141,-500.0,0.00030299,2]
[366500329,1750293044151,-150.0,0.00030299,2]
[366500330,1750293044162,-500.0,0.00030299,2]
[366500331,1750293044172,-151.97634289,0.00030299,2]
[366500332,1750293044183,-500.0,0.00030299,2]
[366500333,1750293044192,-500.0,0.00030299,2]
[366500334,1750293044202,-500.0,0.00030299,2]
[366500335,1750293044212,-150.0,0.00030299,2]
[366500336,1750293044222,-500.0,0.00030299,2]
[366500337,1750293044232,-150.0,0.00030299,2]
[366500338,1750293044242,-500.0,0.00030299,2]
[366500339,1750293044253,-500.0,0.00030299,2]
[366500340,1750293044264,-500.0,0.00030326,2]
[366500341,1750293044275,-500.0,0.00030326,2]
[366500342,1750293044286,-500.0,0.00030326,2]
[366500343,1750293044296,-158.77517985,0.00030326,2]
[366500344,1750293044306,-500.0,0.00030326,2]
[366500345,1750293044316,-500.0,0.00030326,2]
[366500346,1750293044326,-500.0,0.00030326,2]
[366500347,1750293044336,-600.0,0.00030326,2]
[366500348,1750293044346,-500.0,0.00030326,2]
[366500349,1750293044356,-150.0,0.00030326,2]
[366500350,1750293044366,-504.03663097,0.00030326,2]
[366500351,1750293044377,-500.0,0.00030326,2]
[366500352,1750293044387,-600.0,0.00030354,2]
[366500353,1750293044398,-354.18565483,0.00030354,2]
[366500354,1750293044408,-300.0,0.00030354,2]
[366500355,1750293044418,-500.0,0.00030354,2]
[366500356,1750293044428,-500.0,0.00030354,2]
[366500357,1750293044439,-251.31927875,0.00030354,2]
[366500358,1750293044449,-500.0,0.00030354,2]
[366500359,1750293044459,-150.0,0.00030354,2]
[366500360,1750293044469,-500.0,0.00030354,2]
[366500361,1750293044479,-500.0,0.00030381,2]
[366500362,1750293044489,-500.0,0.00030381,2]
[366500363,1750293044499,-500.0,0.00030381,2]
[366500364,1750293044509,-500.0,0.00030381,2]
[366500365,1750293044519,-1496.45,0.000304,7]
[366500366,1750293044528,-5795.93,0.000304,2]
[366500367,1750293044538,-500.0,0.00030409,2]
[366500368,1750293044548,-500.0,0.00030409,2]
[366500369,1750293044558,-500.0,0.00030409,2]
[366500370,1750293044567,-500.0,0.00030409,2]
[366500371,1750293044578,-500.0,0.00030436,2]
[366500372,1750293044589,-502.07311355,0.00030436,2]
[366500373,1750293044599,-500.0,0.00030436,2]
[366500374,1750293044609,-156.587,0.00030456,2]
[366500375,1750293044620,-215.0738,0.00030456,2]
[366500376,1750293044631,-150.0,0.00030463,2]
[366500377,1750293044641,-500.0,0.00030463,2]
[366500378,1750293044651,-153.5,0.00030528,2]
[366500379,1750293044662,-2548.88,0.00030693,5]
[366500380,1750293044673,-173.47,0.00030753,120]
[366500381,1750293044683,-1865.48533775,0.00030762,23]
[366500382,1750293044692,-12464.98,0.00030835,2]
[366500383,1750293044707,-6999.51221417,0.00030929,2]
[366500384,1750293044718,-278.0,0.00030943,2]
[366500385,1750293044729,-1000.0,0.00030946,2]
[366500386,1750293044740,-5505.2251,0.00031084,2]
[366500387,1750293044750,-201.0,0.00031094,13]
[366500388,1750293044759,-119770.97,0.000311,7]
[366500389,1750293044769,-833.92080167,0.00031109,2]
[366500390,1750293044780,-811.16,0.00031194,30]
[366500391,1750293044791,-514.0,0.000312,2]
[366500392,1750293044801,-153.5,0.00031311,2]
[366500393,1750293044811,-1215.367,0.00031314,29]
[366500394,1750293044820,-278.0,0.00031387,2]
[366500395,1750293044830,-151.0,0.00031419,7]
[366500396,1750293044841,-154.574086,0.00031419,7]
[366500397,1750293044851,-151.0,0.00031419,7]
[366500398,1750293044863,-151.0,0.00031419,7]
[366500399,1750293044873,-151.0,0.00031419,7]
[366500400,1750293044883,-180.535539,0.00031419,7]
[366500401,1750293044894,-180.535539,0.00031419,7]
[366500402,1750293044903,-6756.85331926,0.00031419,2]
[366500403,1750293044915,-524.15,0.00031426,2]
[366500404,1750293044925,-1865.48533775,0.00031452,25]
[366500405,1750293044934,-189.0,0.0003153,31]
[366500406,1750293044944,-300.0,0.00031586,2]
[366500407,1750293044954,-1642.397672,0.00031763,12]
[366500408,1750293044964,-284.98881387,0.00031764,15]
[366500409,1750293044974,-162.380719,0.00031825,2]
[366500410,1750293044983,-223.0315306,0.00031825,2]
[366500411,1750293044993,-165.34,0.00031841,2]
[366500412,1750293045003,-168.0,0.00031899,2]
[366500413,1750293045013,-278.0,0.0003192,2]
[366500414,1750293045022,-500.0,0.00031972,7]
[366500415,1750293045032,-331.05277976,0.00031978,2]
[366500416,1750293045041,-1000.0,0.00032,2]